[Event "Early-Titled-Tuesday-Blitz-September-26-2023"]
[Site "Chess.com"]
[Date "2023.09.26"]
[Round "2"]
[White "Incognito_Knight"]
[Black "novocane"]
[Result "1-0"]
[WhiteElo "2749"]
[BlackElo "2374"]
[TimeControl "180+1"]
[EndTime "8:15:47 PDT"]
[Termination "Incognito_Knight won by resignation"]

1. b3 {[%clk 0:03:00]} 1... e5 {[%clk 0:02:57.9]} 2. Bb2 {[%clk 0:02:59.9]} 2...
Nc6 {[%clk 0:02:55]} 3. c4 {[%clk 0:02:59.8]} 3... Nf6 {[%clk 0:02:27.8]} 4. Nf3
{[%clk 0:02:59.2]} 4... Bc5 {[%clk 0:02:24.6]} 5. e3 {[%clk 0:02:48.5]} 5... e4
{[%clk 0:02:14.5]} 6. Nd4 {[%clk 0:02:46.3]} 6... O-O {[%clk 0:02:02.6]} 7. Nf5
{[%clk 0:02:37.6]} 7... d5 {[%clk 0:01:58.2]} 8. cxd5 {[%clk 0:02:17.9]} 8...
Nb4 {[%clk 0:01:25.9]} 9. Ng3 {[%clk 0:02:13.8]} 9... Qxd5 {[%clk 0:01:11.7]}
10. Bxf6 {[%clk 0:02:12]} 10... gxf6 {[%clk 0:01:11.7]} 11. Nc3 {[%clk
0:02:11.9]} 11... Nd3+ {[%clk 0:01:11.7]} 12. Bxd3 {[%clk 0:02:11.2]} 12... Qxd3
{[%clk 0:01:11.9]} 13. Ngxe4 {[%clk 0:01:51.8]} 13... Be7 {[%clk 0:01:11.3]} 14.
Qf3 {[%clk 0:01:51.5]} 14... f5 {[%clk 0:01:09.2]} 15. Qg3+ {[%clk 0:01:49.5]}
15... Kh8 {[%clk 0:01:09]} 16. Qe5+ {[%clk 0:01:49.1]} 16... Kg8 {[%clk
0:01:04.4]} 17. Qxe7 {[%clk 0:01:48.2]} 17... fxe4 {[%clk 0:01:04.7]} 18. Qxe4
{[%clk 0:01:33.2]} 18... Bf5 {[%clk 0:01:01.2]} 19. Qxd3 {[%clk 0:01:28.4]}
19... Bxd3 {[%clk 0:01:01.8]} 20. Nd5 {[%clk 0:01:25.1]} 20... c6 {[%clk
0:00:57.1]} 21. Nf4 {[%clk 0:01:24.5]} 21... Bf5 {[%clk 0:00:55.3]} 22. d4
{[%clk 0:01:23.5]} 22... a5 {[%clk 0:00:54.9]} 23. Rc1 {[%clk 0:01:22.1]} 23...
a4 {[%clk 0:00:55.4]} 24. b4 {[%clk 0:01:21.9]} 24... a3 {[%clk 0:00:55.5]} 25.
Kd2 {[%clk 0:01:10.4]} 25... Rfc8 {[%clk 0:00:49.3]} 26. Rc5 {[%clk 0:01:08.5]}
26... Ra4 {[%clk 0:00:48.1]} 27. Rxf5 {[%clk 0:01:06.9]} 1-0

[Event "Early-Titled-Tuesday-Blitz-September-26-2023"]
[Site "Chess.com"]
[Date "2023.09.26"]
[Round "2"]
[White "Mihajlovskij"]
[Black "Squirlolz"]
[Result "0-1"]
[WhiteElo "2273"]
[BlackElo "2495"]
[TimeControl "180+1"]
[EndTime "8:15:48 PDT"]
[Termination "Squirlolz won by resignation"]

1. e4 {[%clk 0:02:13.3]} 1... c5 {[%clk 0:02:59.3]} 2. d4 {[%clk 0:02:11.4]}
2... cxd4 {[%clk 0:02:59.4]} 3. Qxd4 {[%clk 0:02:12.3]} 3... Nc6 {[%clk
0:02:59.2]} 4. Qd3 {[%clk 0:02:12.8]} 4... g6 {[%clk 0:02:59.6]} 5. Nc3 {[%clk
0:02:13.4]} 5... Bg7 {[%clk 0:03:00]} 6. Nf3 {[%clk 0:02:14.1]} 6... Nf6 {[%clk
0:03:00.3]} 7. Be2 {[%clk 0:02:14.8]} 7... O-O {[%clk 0:03:00.5]} 8. Bg5 {[%clk
0:02:15.4]} 8... a6 {[%clk 0:02:54.2]} 9. O-O {[%clk 0:02:15.5]} 9... b5 {[%clk
0:02:54.1]} 10. Nd5 {[%clk 0:02:13.1]} 10... e6 {[%clk 0:02:44.8]} 11. Nxf6+
{[%clk 0:02:07.3]} 11... Bxf6 {[%clk 0:02:45.7]} 12. Bxf6 {[%clk 0:02:08.2]}
12... Qxf6 {[%clk 0:02:46.6]} 13. c3 {[%clk 0:02:05.3]} 13... Rd8 {[%clk
0:02:44.8]} 14. Qd6 {[%clk 0:02:04.5]} 14... Qe7 {[%clk 0:02:29.5]} 15. Rfd1
{[%clk 0:01:58.3]} 15... Qxd6 {[%clk 0:02:28]} 16. Rxd6 {[%clk 0:01:59.2]} 16...
Kf8 {[%clk 0:02:28.5]} 17. a4 {[%clk 0:01:58.9]} 17... Ke7 {[%clk 0:02:27.3]}
18. Rd2 {[%clk 0:01:57.3]} 18... b4 {[%clk 0:02:24.2]} 19. Nd4 {[%clk
0:01:52.3]} 19... bxc3 {[%clk 0:02:22.2]} 20. bxc3 {[%clk 0:01:53.2]} 20... Na5
{[%clk 0:02:19.1]} 21. Rad1 {[%clk 0:01:44.4]} 21... Bb7 {[%clk 0:02:14.7]} 22.
f3 {[%clk 0:01:44.8]} 22... Rac8 {[%clk 0:02:14.5]} 23. Rd3 {[%clk 0:01:41.2]}
23... Rc7 {[%clk 0:02:14.3]} 24. Bf1 {[%clk 0:01:39.2]} 24... Rdc8 {[%clk
0:02:14.3]} 25. Ne2 {[%clk 0:01:39.7]} 25... Nb3 {[%clk 0:02:12.5]} 26. Rb1
{[%clk 0:01:34.9]} 26... Nc5 {[%clk 0:02:12]} 27. Rd4 {[%clk 0:01:35]} 27... a5
{[%clk 0:02:03.4]} 28. Rb5 {[%clk 0:01:29.4]} 28... d6 {[%clk 0:01:40.8]} 29.
Rb6 {[%clk 0:01:17.5]} 29... Bc6 {[%clk 0:01:37.4]} 30. Kf2 {[%clk 0:01:08.3]}
30... Bxa4 {[%clk 0:01:31.5]} 31. Rdxd6 {[%clk 0:00:54.4]} 31... Nd7 {[%clk
0:01:07]} 32. Rd2 {[%clk 0:00:50.2]} 32... Nxb6 {[%clk 0:01:04.8]} 0-1

[Event "Early-Titled-Tuesday-Blitz-September-26-2023"]
[Site "Chess.com"]
[Date "2023.09.26"]
[Round "2"]
[White "CMmauricio"]
[Black "ajedrezhoy"]
[Result "0-1"]
[WhiteElo "2601"]
[BlackElo "2384"]
[TimeControl "180+1"]
[EndTime "8:15:51 PDT"]
[Termination "ajedrezhoy won by resignation"]

1. d4 {[%clk 0:03:00.9]} 1... Nf6 {[%clk 0:02:53]} 2. e3 {[%clk 0:03:01.8]} 2...
d5 {[%clk 0:02:48.5]} 3. f4 {[%clk 0:03:02.2]} 3... Bf5 {[%clk 0:02:46.1]} 4. c3
{[%clk 0:03:02.6]} 4... e6 {[%clk 0:02:46.2]} 5. Bd3 {[%clk 0:03:03.3]} 5... c5
{[%clk 0:02:42.7]} 6. Nf3 {[%clk 0:03:03.6]} 6... Nc6 {[%clk 0:02:42.5]} 7. O-O
{[%clk 0:03:03.5]} 7... Bd6 {[%clk 0:02:35.1]} 8. Qe2 {[%clk 0:03:03.4]} 8...
O-O {[%clk 0:02:34.7]} 9. Nbd2 {[%clk 0:03:03.8]} 9... h6 {[%clk 0:02:30.7]} 10.
Ne5 {[%clk 0:03:03.9]} 10... Bxd3 {[%clk 0:02:29.3]} 11. Qxd3 {[%clk 0:03:04.2]}
11... Nd7 {[%clk 0:02:22.3]} 12. b3 {[%clk 0:02:59.2]} 12... Ne7 {[%clk
0:02:19.3]} 13. Bb2 {[%clk 0:02:59]} 13... f6 {[%clk 0:02:19.1]} 14. Nxd7 {[%clk
0:02:57.5]} 14... Qxd7 {[%clk 0:02:19]} 15. e4 {[%clk 0:02:58]} 15... cxd4
{[%clk 0:02:16]} 16. Qxd4 {[%clk 0:02:58.2]} 16... Qc7 {[%clk 0:02:08.8]} 17.
Kh1 {[%clk 0:02:57.2]} 17... Bxf4 {[%clk 0:01:58.4]} 18. exd5 {[%clk 0:02:57.6]}
18... Nxd5 {[%clk 0:01:54.2]} 19. c4 {[%clk 0:02:54.9]} 19... Be5 {[%clk
0:01:53.3]} 20. Qg4 {[%clk 0:02:46]} 20... Bxb2 {[%clk 0:01:51.2]} 21. Rab1
{[%clk 0:02:45.4]} 21... f5 {[%clk 0:01:45.6]} 22. Qe2 {[%clk 0:02:41.9]} 22...
Qe5 {[%clk 0:01:35.9]} 23. Qxe5 {[%clk 0:02:38.9]} 23... Bxe5 {[%clk 0:01:36]}
24. cxd5 {[%clk 0:02:39.6]} 24... exd5 {[%clk 0:01:36.2]} 25. Nf3 {[%clk
0:02:40.3]} 25... Bf6 {[%clk 0:01:35.5]} 26. Rbd1 {[%clk 0:02:40.4]} 26... Rfd8
{[%clk 0:01:34.3]} 27. Ne1 {[%clk 0:02:40.8]} 27... g6 {[%clk 0:01:33.3]} 28.
Nd3 {[%clk 0:02:41.5]} 28... Kf7 {[%clk 0:01:31.4]} 29. g4 {[%clk 0:02:34.4]}
29... fxg4 {[%clk 0:01:26]} 30. Ne5+ {[%clk 0:02:34.8]} 30... Kg7 {[%clk
0:01:23.2]} 31. Nxg4 {[%clk 0:02:33.7]} 31... Bc3 {[%clk 0:01:20.5]} 32. Rd3
{[%clk 0:02:34.3]} 32... d4 {[%clk 0:01:20.6]} 33. Ne5 {[%clk 0:02:34.9]} 33...
Rf8 {[%clk 0:01:18.4]} 34. Rg1 {[%clk 0:02:34.9]} 34... Rf6 {[%clk 0:01:17.1]}
35. Rdg3 {[%clk 0:02:30.9]} 35... g5 {[%clk 0:01:16.2]} 36. h4 {[%clk
0:02:31.5]} 36... Re8 {[%clk 0:01:14.6]} 37. Ng4 {[%clk 0:02:25]} 37... Rg6
{[%clk 0:01:10.5]} 38. hxg5 {[%clk 0:02:22.4]} 38... Rxg5 {[%clk 0:01:09.7]} 39.
Nxh6 {[%clk 0:02:01.3]} 39... Rxg3 {[%clk 0:01:06.3]} 40. Nf5+ {[%clk
0:02:01.6]} 40... Kf6 {[%clk 0:01:06.2]} 41. Nxg3 {[%clk 0:02:01.9]} 41... d3
{[%clk 0:00:59]} 42. Rf1+ {[%clk 0:01:56.3]} 42... Kg5 {[%clk 0:00:55.1]} 43.
Kg2 {[%clk 0:01:39.6]} 43... d2 {[%clk 0:00:53.4]} 44. Rf5+ {[%clk 0:01:40.2]}
44... Kg6 {[%clk 0:00:52.6]} 45. Rd5 {[%clk 0:01:40.7]} 45... Re1 {[%clk
0:00:48.9]} 46. Rd6+ {[%clk 0:01:37.3]} 46... Kf7 {[%clk 0:00:48.1]} 0-1

[Event "Early-Titled-Tuesday-Blitz-September-26-2023"]
[Site "Chess.com"]
[Date "2023.09.26"]
[Round "2"]
[White "Likvidator228"]
[Black "Arifarsky"]
[Result "1/2-1/2"]
[WhiteElo "2546"]
[BlackElo "2723"]
[TimeControl "180+1"]
[EndTime "8:15:58 PDT"]
[Termination "Game drawn by agreement"]

1. d4 {[%clk 0:03:00.9]} 1... Nf6 {[%clk 0:02:59.9]} 2. c4 {[%clk 0:03:00]} 2...
g6 {[%clk 0:03:00.4]} 3. Nc3 {[%clk 0:02:59.8]} 3... d5 {[%clk 0:03:01]} 4. Bf4
{[%clk 0:02:59]} 4... c6 {[%clk 0:02:55.7]} 5. e3 {[%clk 0:02:58.9]} 5... Bg7
{[%clk 0:02:55.8]} 6. Rc1 {[%clk 0:02:57.9]} 6... O-O {[%clk 0:02:56.1]} 7. Nf3
{[%clk 0:02:56.7]} 7... a6 {[%clk 0:02:53.1]} 8. c5 {[%clk 0:02:49.2]} 8... Bg4
{[%clk 0:02:44.2]} 9. Be2 {[%clk 0:02:45.9]} 9... Bxf3 {[%clk 0:02:44.2]} 10.
Bxf3 {[%clk 0:02:46.1]} 10... Nbd7 {[%clk 0:02:45.1]} 11. O-O {[%clk 0:02:43.7]}
11... Re8 {[%clk 0:02:44.9]} 12. b4 {[%clk 0:02:32.7]} 12... e5 {[%clk
0:02:25.4]} 13. Bg3 {[%clk 0:02:32.6]} 13... Qe7 {[%clk 0:02:15.4]} 14. a4
{[%clk 0:02:30.4]} 14... h5 {[%clk 0:02:09.1]} 15. b5 {[%clk 0:02:22]} 15...
axb5 {[%clk 0:02:10]} 16. axb5 {[%clk 0:02:21.7]} 16... Ra3 {[%clk 0:02:07.8]}
17. bxc6 {[%clk 0:01:53.8]} 17... bxc6 {[%clk 0:02:08.7]} 18. Nb1 {[%clk
0:01:37.6]} 18... Ra2 {[%clk 0:02:02.8]} 19. Nc3 {[%clk 0:01:37.2]} 19... Ra3
{[%clk 0:02:02.6]} 20. Nb1 {[%clk 0:01:37]} 20... Ra1 {[%clk 0:01:52]} 21. Nc3
{[%clk 0:01:36.2]} 21... Rxc1 {[%clk 0:01:49.1]} 22. Qxc1 {[%clk 0:01:37.1]}
22... exd4 {[%clk 0:01:44.7]} 23. exd4 {[%clk 0:01:38]} 23... Nh7 {[%clk
0:01:45.3]} 24. Bd6 {[%clk 0:01:28.8]} 24... Qf6 {[%clk 0:01:38.3]} 25. Rd1
{[%clk 0:01:27.6]} 25... Ng5 {[%clk 0:01:37.7]} 26. Be2 {[%clk 0:01:20.6]} 26...
Ne4 {[%clk 0:01:38]} 27. Bf3 {[%clk 0:01:08.1]} 27... Ndxc5 {[%clk 0:01:12.3]}
28. Bxc5 {[%clk 0:00:59.8]} 28... Nxc5 {[%clk 0:01:12.2]} 29. Nxd5 {[%clk
0:01:00.4]} 29... cxd5 {[%clk 0:01:10.3]} 30. Qxc5 {[%clk 0:01:00.6]} 30... Qxd4
{[%clk 0:00:56]} 31. Qxd4 {[%clk 0:01:00.2]} 31... Bxd4 {[%clk 0:00:54.9]} 32.
g3 {[%clk 0:00:59.7]} 32... Bf6 {[%clk 0:00:52.7]} 1/2-1/2

[Event "Early-Titled-Tuesday-Blitz-September-26-2023"]
[Site "Chess.com"]
[Date "2023.09.26"]
[Round "2"]
[White "Cheer_Down"]
[Black "jasonbolivar"]
[Result "1-0"]
[WhiteElo "2479"]
[BlackElo "2263"]
[TimeControl "180+1"]
[EndTime "8:16:04 PDT"]
[Termination "Cheer_Down won on time"]

1. e4 {[%clk 0:03:00.9]} 1... c5 {[%clk 0:02:26.5]} 2. Nf3 {[%clk 0:03:00.2]}
2... d6 {[%clk 0:02:26.1]} 3. Bb5+ {[%clk 0:02:59.1]} 3... Bd7 {[%clk
0:02:25.1]} 4. Bxd7+ {[%clk 0:02:58.8]} 4... Qxd7 {[%clk 0:02:26]} 5. c4 {[%clk
0:02:58.3]} 5... Nc6 {[%clk 0:02:25]} 6. Nc3 {[%clk 0:02:58.3]} 6... g6 {[%clk
0:02:25]} 7. d4 {[%clk 0:02:58.5]} 7... cxd4 {[%clk 0:02:24]} 8. Nxd4 {[%clk
0:02:59.4]} 8... Bg7 {[%clk 0:02:21]} 9. Be3 {[%clk 0:02:58.8]} 9... Nf6 {[%clk
0:02:20.5]} 10. f3 {[%clk 0:02:58.7]} 10... O-O {[%clk 0:02:20.6]} 11. O-O
{[%clk 0:02:58.3]} 11... a6 {[%clk 0:02:20.8]} 12. b3 {[%clk 0:02:54.6]} 12...
Nxd4 {[%clk 0:02:14.5]} 13. Bxd4 {[%clk 0:02:54.2]} 13... b5 {[%clk 0:02:14.9]}
14. Nd5 {[%clk 0:02:51.7]} 14... Nxd5 {[%clk 0:02:05.4]} 15. cxd5 {[%clk
0:02:47.7]} 15... Rfc8 {[%clk 0:01:57.1]} 16. Bxg7 {[%clk 0:02:47.5]} 16... Kxg7
{[%clk 0:01:57.3]} 17. Qd4+ {[%clk 0:02:47.9]} 17... f6 {[%clk 0:01:45.5]} 18.
Rac1 {[%clk 0:02:47.5]} 18... Rxc1 {[%clk 0:01:42.3]} 19. Rxc1 {[%clk
0:02:46.8]} 19... Rc8 {[%clk 0:01:43]} 20. Rc3 {[%clk 0:02:46.1]} 20... Rc7
{[%clk 0:01:25.7]} 21. h4 {[%clk 0:02:28.5]} 21... Qc8 {[%clk 0:01:20.6]} 22.
Rxc7 {[%clk 0:02:27.7]} 22... Qxc7 {[%clk 0:01:21.5]} 23. Qe3 {[%clk 0:02:19.3]}
23... Qc2 {[%clk 0:01:13.7]} 24. a3 {[%clk 0:02:16.7]} 24... Qc5 {[%clk
0:01:07.9]} 25. Qxc5 {[%clk 0:02:11]} 25... dxc5 {[%clk 0:01:08.8]} 26. f4
{[%clk 0:02:07.3]} 26... Kf7 {[%clk 0:01:06]} 27. g4 {[%clk 0:02:05]} 27... Ke8
{[%clk 0:01:02.6]} 28. g5 {[%clk 0:02:00.7]} 28... Kd7 {[%clk 0:00:39.9]} 29. e5
{[%clk 0:01:56.6]} 29... f5 {[%clk 0:00:20]} 30. Kf2 {[%clk 0:01:55.3]} 30... a5
{[%clk 0:00:16.5]} 31. Ke3 {[%clk 0:01:52.2]} 31... Kc7 {[%clk 0:00:08]} 32. Kd2
{[%clk 0:01:51.8]} 32... Kd7 {[%clk 0:00:08.2]} 33. Kc3 {[%clk 0:01:51.5]} 33...
Kc7 {[%clk 0:00:08.6]} 34. a4 {[%clk 0:01:50.5]} 34... bxa4 {[%clk 0:00:03.5]}
35. bxa4 {[%clk 0:01:50.3]} 35... Kb6 {[%clk 0:00:01.7]} 36. Kc4 {[%clk
0:01:50.1]} 36... Kc7 {[%clk 0:00:01]} 37. Kxc5 {[%clk 0:01:50.2]} 1-0

[Event "Early-Titled-Tuesday-Blitz-September-26-2023"]
[Site "Chess.com"]
[Date "2023.09.26"]
[Round "2"]
[White "FREDERICKtheMATE"]
[Black "Mops_2004"]
[Result "1-0"]
[WhiteElo "2589"]
[BlackElo "2762"]
[TimeControl "180+1"]
[EndTime "8:16:07 PDT"]
[Termination "FREDERICKtheMATE won by resignation"]

1. Nf3 {[%clk 0:03:00.9]} 1... g6 {[%clk 0:03:00.1]} 2. d4 {[%clk 0:03:01.3]}
2... Bg7 {[%clk 0:03:00.3]} 3. c4 {[%clk 0:03:02]} 3... d6 {[%clk 0:03:00.7]} 4.
Nc3 {[%clk 0:03:02.5]} 4... e5 {[%clk 0:03:00.9]} 5. dxe5 {[%clk 0:03:01.5]}
5... dxe5 {[%clk 0:03:01.2]} 6. Qxd8+ {[%clk 0:03:01.5]} 6... Kxd8 {[%clk
0:03:02.1]} 7. Bg5+ {[%clk 0:03:01.3]} 7... f6 {[%clk 0:03:01.8]} 8. O-O-O+
{[%clk 0:03:01.4]} 8... Nd7 {[%clk 0:03:00.5]} 9. Bd2 {[%clk 0:02:55]} 9... c6
{[%clk 0:02:55.1]} 10. e4 {[%clk 0:02:54.6]} 10... Ke7 {[%clk 0:02:52.5]} 11.
Be3 {[%clk 0:02:54.2]} 11... Bh6 {[%clk 0:02:52.3]} 12. Kd2 {[%clk 0:02:51.1]}
12... Nc5 {[%clk 0:02:48]} 13. b4 {[%clk 0:02:49.1]} 13... Ne6 {[%clk
0:02:47.5]} 14. Bxh6 {[%clk 0:02:48.3]} 14... Nxh6 {[%clk 0:02:47.3]} 15. g3
{[%clk 0:02:45.7]} 15... a5 {[%clk 0:02:45.9]} 16. a3 {[%clk 0:02:41.1]} 16...
axb4 {[%clk 0:02:46.2]} 17. axb4 {[%clk 0:02:41.7]} 17... Nf7 {[%clk 0:02:44.4]}
18. Bd3 {[%clk 0:02:35.6]} 18... Nfg5 {[%clk 0:02:30.8]} 19. Nxg5 {[%clk
0:02:31.9]} 19... fxg5 {[%clk 0:02:30.4]} 20. Ra1 {[%clk 0:02:30.2]} 20... Bd7
{[%clk 0:02:29.1]} 21. Na4 {[%clk 0:02:27.2]} 21... Nd4 {[%clk 0:02:25.4]} 22.
Kc3 {[%clk 0:02:22.6]} 22... Rhf8 {[%clk 0:02:22.5]} 23. Nb6 {[%clk 0:02:18.6]}
23... Rab8 {[%clk 0:01:46.2]} 24. Ra2 {[%clk 0:02:09.3]} 24... Be6 {[%clk
0:01:41]} 25. Rd1 {[%clk 0:01:50]} 25... Kd6 {[%clk 0:01:38.8]} 26. c5+ {[%clk
0:01:41.6]} 26... Kc7 {[%clk 0:01:38.8]} 27. Bc4 {[%clk 0:01:40.7]} 27... Rf3+
{[%clk 0:01:07]} 28. Rd3 {[%clk 0:01:37.9]} 28... Rbf8 {[%clk 0:00:57.8]} 29.
Bxe6 {[%clk 0:01:31.8]} 29... Nxe6 {[%clk 0:00:53.9]} 30. Ra8 {[%clk 0:01:23.5]}
30... Nd4 {[%clk 0:00:43]} 31. Rxf3 {[%clk 0:01:17.6]} 31... Rxf3+ {[%clk
0:00:22.6]} 32. Kc4 {[%clk 0:01:12.6]} 1-0

[Event "Early-Titled-Tuesday-Blitz-September-26-2023"]
[Site "Chess.com"]
[Date "2023.09.26"]
[Round "2"]
[White "GradualismUnleashed"]
[Black "Mikhail_Bryakin"]
[Result "0-1"]
[WhiteElo "2596"]
[BlackElo "2829"]
[TimeControl "180+1"]
[EndTime "8:16:17 PDT"]
[Termination "Mikhail_Bryakin won by resignation"]

1. e4 {[%clk 0:03:00.9]} 1... Nf6 {[%clk 0:02:53.8]} 2. e5 {[%clk 0:03:00.8]}
2... Nd5 {[%clk 0:02:54.1]} 3. d4 {[%clk 0:03:01.4]} 3... d6 {[%clk 0:02:54.1]}
4. Nf3 {[%clk 0:03:01.4]} 4... dxe5 {[%clk 0:02:49.4]} 5. Nxe5 {[%clk
0:03:01.4]} 5... Bf5 {[%clk 0:02:47.9]} 6. Bd3 {[%clk 0:02:59.4]} 6... Bxd3
{[%clk 0:02:46.5]} 7. Qxd3 {[%clk 0:02:59.2]} 7... c6 {[%clk 0:02:46.4]} 8. O-O
{[%clk 0:02:58.6]} 8... Nd7 {[%clk 0:02:47]} 9. Nf3 {[%clk 0:02:58.2]} 9... g6
{[%clk 0:02:47.5]} 10. a3 {[%clk 0:02:57]} 10... Bg7 {[%clk 0:02:47.7]} 11. c4
{[%clk 0:02:56.8]} 11... Nc7 {[%clk 0:02:47]} 12. Nc3 {[%clk 0:02:54.6]} 12...
O-O {[%clk 0:02:47.7]} 13. Re1 {[%clk 0:02:50.1]} 13... Re8 {[%clk 0:02:41.5]}
14. Bg5 {[%clk 0:02:46.6]} 14... Ne6 {[%clk 0:02:41.1]} 15. Be3 {[%clk
0:02:46.6]} 15... Ndc5 {[%clk 0:02:37.8]} 16. Qc2 {[%clk 0:02:39.4]} 16... Nxd4
{[%clk 0:02:37.7]} 17. Nxd4 {[%clk 0:02:34.9]} 17... Bxd4 {[%clk 0:02:38.6]} 18.
Rad1 {[%clk 0:02:31.3]} 18... e5 {[%clk 0:02:38.8]} 19. h3 {[%clk 0:02:15]}
19... Ne6 {[%clk 0:02:30.5]} 20. Ne4 {[%clk 0:02:13.4]} 20... f5 {[%clk
0:02:28.5]} 21. Nc3 {[%clk 0:01:58.4]} 21... Qf6 {[%clk 0:02:28.4]} 22. Qb3
{[%clk 0:01:55.3]} 22... Re7 {[%clk 0:02:28]} 23. Ne2 {[%clk 0:01:41.2]} 23...
Rd8 {[%clk 0:02:20.2]} 24. Nxd4 {[%clk 0:01:39.5]} 24... Nxd4 {[%clk 0:02:13.4]}
25. Bxd4 {[%clk 0:01:39.2]} 25... exd4 {[%clk 0:02:12.6]} 26. c5+ {[%clk
0:01:38.3]} 26... Kg7 {[%clk 0:02:13]} 27. Qd3 {[%clk 0:01:19.5]} 27... Rxe1+
{[%clk 0:02:04]} 28. Rxe1 {[%clk 0:01:19.3]} 28... Rd7 {[%clk 0:02:04.7]} 29. b4
{[%clk 0:01:17.3]} 29... a6 {[%clk 0:02:03.7]} 30. g3 {[%clk 0:01:15.4]} 30...
h5 {[%clk 0:01:56.3]} 31. h4 {[%clk 0:01:14.5]} 31... f4 {[%clk 0:01:55.5]} 32.
Re4 {[%clk 0:01:10.5]} 32... fxg3 {[%clk 0:01:55.7]} 33. fxg3 {[%clk 0:01:10]}
33... Qf5 {[%clk 0:01:55.8]} 34. Qe2 {[%clk 0:01:00.1]} 34... Qf7 {[%clk
0:01:50.9]} 35. Re6 {[%clk 0:00:56.7]} 35... d3 {[%clk 0:01:49]} 36. Qe5+ {[%clk
0:00:55.1]} 36... Kh7 {[%clk 0:01:48.7]} 37. Rf6 {[%clk 0:00:55.1]} 37... Qg7
{[%clk 0:01:43.1]} 38. Qf4 {[%clk 0:00:22.2]} 38... d2 {[%clk 0:01:31.1]} 39.
Rd6 {[%clk 0:00:21.8]} 39... d1=Q+ {[%clk 0:01:31.5]} 40. Rxd1 {[%clk
0:00:21.7]} 40... Rxd1+ {[%clk 0:01:32.2]} 41. Kf2 {[%clk 0:00:22.6]} 41... Qb2+
{[%clk 0:01:31.9]} 42. Ke3 {[%clk 0:00:22.1]} 42... Qd2+ {[%clk 0:01:31.8]} 0-1

[Event "Early-Titled-Tuesday-Blitz-September-26-2023"]
[Site "Chess.com"]
[Date "2023.09.26"]
[Round "2"]
[White "Alphafischer2019"]
[Black "Sanan_Sjugirov"]
[Result "0-1"]
[WhiteElo "2632"]
[BlackElo "2990"]
[TimeControl "180+1"]
[EndTime "8:16:22 PDT"]
[Termination "Sanan_Sjugirov won by resignation"]

1. Nf3 {[%clk 0:03:00.9]} 1... Nf6 {[%clk 0:02:59.9]} 2. g3 {[%clk 0:03:01.5]}
2... b6 {[%clk 0:02:59.2]} 3. Bg2 {[%clk 0:03:02.1]} 3... Bb7 {[%clk 0:02:59.8]}
4. c4 {[%clk 0:03:00.4]} 4... c5 {[%clk 0:02:59.1]} 5. b3 {[%clk 0:02:59.9]}
5... g6 {[%clk 0:02:58.9]} 6. Bb2 {[%clk 0:03:00.5]} 6... Bg7 {[%clk 0:02:59.6]}
7. Nc3 {[%clk 0:02:57.7]} 7... O-O {[%clk 0:02:57.5]} 8. O-O {[%clk 0:02:57.1]}
8... d6 {[%clk 0:02:56.1]} 9. d4 {[%clk 0:02:54.2]} 9... cxd4 {[%clk 0:02:56.2]}
10. Qxd4 {[%clk 0:02:53.9]} 10... Nbd7 {[%clk 0:02:55.8]} 11. Qd2 {[%clk
0:02:52]} 11... Rc8 {[%clk 0:02:55]} 12. Rfe1 {[%clk 0:02:46.9]} 12... Nc5
{[%clk 0:02:51.1]} 13. Rad1 {[%clk 0:02:32.1]} 13... a6 {[%clk 0:02:42.1]} 14.
Nd5 {[%clk 0:02:02.1]} 14... Nfe4 {[%clk 0:02:11.1]} 15. Qc1 {[%clk 0:01:56.7]}
15... Bxb2 {[%clk 0:02:08.1]} 16. Qxb2 {[%clk 0:01:57.6]} 16... b5 {[%clk
0:02:03.4]} 17. Ne3 {[%clk 0:01:23.5]} 17... Qb6 {[%clk 0:01:55.8]} 18. Ng4
{[%clk 0:01:15]} 18... h5 {[%clk 0:01:52]} 19. Ne3 {[%clk 0:01:15.6]} 19... Nxf2
{[%clk 0:01:47.1]} 20. Rd4 {[%clk 0:01:00]} 20... e5 {[%clk 0:01:42.4]} 21. Kxf2
{[%clk 0:00:53.1]} 21... exd4 {[%clk 0:01:40.4]} 22. Qxd4 {[%clk 0:00:54]} 22...
Rfe8 {[%clk 0:01:28.5]} 23. Kf1 {[%clk 0:00:51.5]} 23... Re4 {[%clk 0:01:25.6]}
24. Qd2 {[%clk 0:00:49.6]} 24... Nxb3 {[%clk 0:01:22.7]} 25. axb3 {[%clk
0:00:49.8]} 25... Qxe3 {[%clk 0:01:22.6]} 26. Qxd6 {[%clk 0:00:49.1]} 26... bxc4
{[%clk 0:01:12.7]} 27. bxc4 {[%clk 0:00:45.8]} 27... Rexc4 {[%clk 0:01:11.4]}
28. h4 {[%clk 0:00:33.4]} 28... Rc1 {[%clk 0:01:08.7]} 29. Qd7 {[%clk 0:00:25]}
29... Bxf3 {[%clk 0:01:04.8]} 30. Qxc8+ {[%clk 0:00:17.1]} 30... Rxc8 {[%clk
0:01:03.8]} 31. exf3 {[%clk 0:00:18]} 31... Rc1 {[%clk 0:01:02.8]} 0-1

[Event "Early-Titled-Tuesday-Blitz-September-26-2023"]
[Site "Chess.com"]
[Date "2023.09.26"]
[Round "2"]
[White "Jagerrmeisterr"]
[Black "TomLiu777"]
[Result "1-0"]
[WhiteElo "2691"]
[BlackElo "2370"]
[TimeControl "180+1"]
[EndTime "8:16:23 PDT"]
[Termination "Jagerrmeisterr won on time"]

1. e4 {[%clk 0:03:00.9]} 1... c5 {[%clk 0:02:47.9]} 2. Nc3 {[%clk 0:03:00.6]}
2... Nc6 {[%clk 0:02:45.6]} 3. f4 {[%clk 0:03:00.9]} 3... e6 {[%clk 0:02:44.4]}
4. Nf3 {[%clk 0:03:00.6]} 4... Nf6 {[%clk 0:02:45]} 5. e5 {[%clk 0:02:55.9]}
5... Ng8 {[%clk 0:02:42.8]} 6. Bb5 {[%clk 0:02:50.7]} 6... d5 {[%clk 0:02:42.1]}
7. exd6 {[%clk 0:02:41.9]} 7... Bxd6 {[%clk 0:02:41.2]} 8. d4 {[%clk 0:02:42.1]}
8... cxd4 {[%clk 0:02:40.3]} 9. Nxd4 {[%clk 0:02:40.8]} 9... Ne7 {[%clk
0:02:40.9]} 10. Nxc6 {[%clk 0:02:30.5]} 10... bxc6 {[%clk 0:02:40.2]} 11. Bd3
{[%clk 0:02:29.8]} 11... Nd5 {[%clk 0:02:25.5]} 12. Qf3 {[%clk 0:02:22.7]} 12...
Qf6 {[%clk 0:01:08.2]} 13. Ne4 {[%clk 0:02:09.1]} 13... Qe7 {[%clk 0:01:02.6]}
14. a3 {[%clk 0:02:01.6]} 14... Bb7 {[%clk 0:00:58]} 15. Nxd6+ {[%clk 0:01:56]}
15... Qxd6 {[%clk 0:00:54.8]} 16. O-O {[%clk 0:01:56.9]} 16... c5 {[%clk
0:00:32.8]} 17. Qg3 {[%clk 0:01:56.3]} 17... g6 {[%clk 0:00:11]} 18. b3 {[%clk
0:01:51.8]} 18... O-O-O {[%clk 0:00:07.3]} 19. Bb2 {[%clk 0:01:50.9]} 19... f6
{[%clk 0:00:02.1]} 20. Rae1 {[%clk 0:01:48.4]} 20... Rhe8 {[%clk 0:00:02.3]} 21.
Kh1 {[%clk 0:01:48]} 21... Qb6 {[%clk 0:00:02.3]} 22. Qh3 {[%clk 0:01:45.7]}
22... f5 {[%clk 0:00:02.9]} 23. Qxh7 {[%clk 0:01:45]} 23... Kb8 {[%clk
0:00:03.5]} 24. Qxg6 {[%clk 0:01:45]} 24... Ka8 {[%clk 0:00:04]} 25. Qh5 {[%clk
0:01:42.3]} 25... Rg8 {[%clk 0:00:04.6]} 26. Re2 {[%clk 0:01:42.6]} 26... Ne7
{[%clk 0:00:04.3]} 27. Bf6 {[%clk 0:01:40.1]} 27... Qc6 {[%clk 0:00:04.6]} 28.
Rff2 {[%clk 0:01:38.5]} 28... Rde8 {[%clk 0:00:04.7]} 29. a4 {[%clk 0:01:37.2]}
29... Nd5 {[%clk 0:00:04.5]} 30. Bb5 {[%clk 0:01:37.5]} 30... Qc7 {[%clk
0:00:04.4]} 31. Be5 {[%clk 0:01:36.6]} 31... Qd8 {[%clk 0:00:02.8]} 32. Bxe8
{[%clk 0:01:36]} 32... Nb4 {[%clk 0:00:02.3]} 33. Rd2 {[%clk 0:01:30.4]} 33...
Qc8 {[%clk 0:00:01.5]} 34. Bf7 {[%clk 0:01:29.7]} 1-0